bitfinex/quotes_BTCUSD_20230901
["timestamp","ask_amount","ask_price","bid_price","bid_amount"]
[1693542001158,5.20069296,26106.0,26105.0,0.003829]
[1693542001378,5.19985296,26106.0,26105.0,0.003829]
[1693542001522,5.19973296,26106.0,26105.0,0.003829]
[1693542001727,5.37591296,26106.0,26105.0,0.003829]
[1693542001964,5.50874875,26106.0,26105.0,0.003829]
[1693542002148,5.54654875,26106.0,26105.0,0.003829]
[1693542002349,5.53970875,26106.0,26105.0,0.003829]
[1693542002555,5.53862875,26106.0,26105.0,0.003829]
[1693542002796,5.53886875,26106.0,26105.0,0.003829]
[1693542003000,5.54894875,26106.0,26105.0,0.003829]
[1693542003339,5.54918875,26106.0,26105.0,0.003829]
[1693542003494,5.19756875,26106.0,26105.0,0.003829]
[1693542003695,5.54882875,26106.0,26105.0,0.003829]
[1693542003901,5.84305926,26106.0,26105.0,0.003829]
[1693542004108,5.84281926,26106.0,26105.0,0.003829]
[1693542004515,5.84089926,26106.0,26105.0,0.003829]
[1693542004676,5.84029926,26106.0,26105.0,0.003829]
[1693542004876,5.84161926,26106.0,26105.0,0.003829]
[1693542005085,5.84125926,26106.0,26105.0,0.003829]
[1693542005289,5.87102347,26106.0,26105.0,0.003829]
[1693542005490,5.87066347,26106.0,26105.0,0.003829]
[1693542005684,5.86982347,26106.0,26105.0,0.003829]
[1693542005891,5.86778347,26106.0,26105.0,0.003829]
[1693542006269,5.86862347,26106.0,26105.0,0.003829]
[1693542006447,5.86742347,26106.0,26105.0,0.003829]
[1693542006677,5.86094347,26106.0,26105.0,0.003829]
[1693542006885,5.85146347,26106.0,26105.0,0.003829]
[1693542007088,5.42712347,26106.0,26105.0,0.003829]
[1693542007265,5.76770347,26106.0,26105.0,0.003829]
[1693542007471,5.83826347,26106.0,26105.0,0.003829]
[1693542007703,5.80538347,26106.0,26105.0,0.003829]
[1693542007823,5.80310347,26106.0,26105.0,0.003829]
[1693542008052,5.83934347,26106.0,26105.0,0.003829]
[1693542008252,5.83898347,26106.0,26105.0,0.003829]
[1693542008456,5.84174347,26106.0,26105.0,0.003829]
[1693542008674,5.84138347,26106.0,26105.0,0.003829]
[1693542009131,5.84186347,26106.0,26105.0,0.003829]
[1693542009334,5.89370347,26106.0,26105.0,0.003829]
[1693542009535,5.91358347,26106.0,26105.0,0.003829]
[1693542009755,5.90890347,26106.0,26105.0,0.003829]
[1693542009974,5.90830347,26106.0,26105.0,0.003829]
[1693542010388,5.90878347,26106.0,26105.0,0.003829]
[1693542010612,5.90866347,26106.0,26105.0,0.003829]
[1693542010812,5.90818347,26106.0,26105.0,0.003829]
[1693542011019,5.90746347,26106.0,26105.0,0.003829]
[1693542011239,5.83417678,26106.0,26105.0,0.003829]
[1693542011434,5.90397922,26106.0,26105.0,0.003829]
[1693542011688,5.89929922,26106.0,26105.0,0.003829]
[1693542011929,5.89521922,26106.0,26105.0,0.003829]
[1693542012175,5.90889922,26106.0,26105.0,0.003829]
[1693542012425,5.91033922,26106.0,26105.0,0.003829]
[1693542012674,5.91141922,26106.0,26105.0,0.003829]
[1693542012914,6.21249922,26106.0,26105.0,0.003829]
[1693542013149,6.21225922,26106.0,26105.0,0.003829]
[1693542013408,6.21621922,26106.0,26105.0,0.003829]
[1693542013608,6.22521922,26106.0,26105.0,0.003829]
[1693542013837,6.22485922,26106.0,26105.0,0.003829]
[1693542014051,6.22449922,26106.0,26105.0,0.003829]
[1693542014252,6.22401922,26106.0,26105.0,0.003829]
[1693542014431,6.22353922,26106.0,26105.0,0.003829]
[1693542014564,6.22269922,26106.0,26105.0,0.003829]
[1693542014767,6.22137922,26106.0,26105.0,0.003829]
[1693542014966,6.22557922,26106.0,26105.0,0.003829]
[1693542015220,5.91502773,26106.0,26105.0,0.003829]
[1693542015540,6.22196914,26106.0,26105.0,0.003829]
[1693542015715,5.91178773,26106.0,26105.0,0.003829]
[1693542015919,5.91118773,26106.0,26105.0,0.003829]
[1693542016171,5.91454773,26106.0,26105.0,0.003829]
[1693542016379,5.92702773,26106.0,26105.0,0.003829]
[1693542016598,5.90566773,26106.0,26105.0,0.003829]
[1693542016800,5.84306689,26106.0,26105.0,0.003829]
[1693542017041,5.84798689,26106.0,26105.0,0.003829]
[1693542017248,2.80156,26101.0,26100.0,1.0495026]
[1693542017461,4.03861352,26101.0,26100.0,1.0495026]
[1693542017662,4.50261352,26101.0,26100.0,0.99990708]
[1693542017869,4.50285352,26101.0,26100.0,0.99990708]
[1693542018072,5.20303352,26101.0,26100.0,0.99990708]
[1693542018286,5.20321352,26101.0,26100.0,0.99990708]
[1693542018503,5.20345352,26101.0,26100.0,0.99990708]
[1693542018707,5.20519352,26101.0,26100.0,0.99990708]
[1693542018915,5.20501352,26101.0,26100.0,0.99990708]
[1693542019116,5.20825352,26101.0,26100.0,0.99990708]
[1693542019344,5.24455352,26101.0,26100.0,0.99990708]
[1693542019552,5.24569352,26101.0,26100.0,0.99990708]
[1693542019767,5.24233352,26101.0,26100.0,0.99990708]
[1693542019967,5.27833352,26101.0,26100.0,0.99990708]
[1693542020175,5.27791352,26101.0,26100.0,0.99990708]
[1693542020376,5.27659352,26101.0,26100.0,0.99990708]
[1693542020505,5.27107352,26101.0,26100.0,0.99990708]
[1693542020709,5.26915352,26101.0,26100.0,0.99990708]
[1693542020914,5.26945352,26101.0,26100.0,0.99990708]
[1693542021118,5.27011352,26101.0,26100.0,0.99990708]
[1693542021306,5.27065352,26101.0,26100.0,0.99990708]
[1693542021503,5.27083352,26101.0,26100.0,0.99990708]
[1693542021713,5.33153061,26101.0,26100.0,0.99990708]
[1693542021915,5.35097061,26101.0,26100.0,0.99990708]
[1693542022181,5.48861061,26101.0,26100.0,0.99990708]
[1693542022389,5.52429061,26101.0,26100.0,0.99990708]
[1693542022595,5.54937061,26101.0,26100.0,0.99990708]
[1693542022797,5.54901061,26101.0,26100.0,0.99990708]
[1693542023002,5.52685061,26101.0,26100.0,0.99990708]
[1693542023215,5.53345061,26101.0,26100.0,0.99990708]
[1693542023426,5.44643907,26101.0,26100.0,0.99990708]
[1693542023626,5.45375907,26101.0,26100.0,0.99990708]
[1693542023836,5.44883907,26101.0,26100.0,0.99990708]
[1693542023986,5.44871907,26101.0,26100.0,0.99990708]
[1693542024253,5.53036007,26101.0,26100.0,0.99990708]
[1693542024426,5.53000007,26101.0,26100.0,0.99990708]
[1693542024648,5.52712007,26101.0,26100.0,0.99990708]
[1693542024883,5.52616007,26101.0,26100.0,0.99990708]
[1693542025099,5.52088007,26101.0,26100.0,0.99990708]
[1693542025421,5.52760007,26101.0,26100.0,0.99990708]
[1693542025657,5.52556007,26101.0,26100.0,0.99990708]
[1693542025844,5.52760007,26101.0,26100.0,0.99990708]
[1693542026433,5.53024007,26101.0,26100.0,0.99990708]
[1693542026637,5.52784007,26101.0,26100.0,0.99990708]
[1693542026791,5.52184007,26101.0,26100.0,0.99990708]
[1693542026987,5.52136007,26101.0,26100.0,0.99990708]
[1693542027321,5.50900007,26101.0,26100.0,0.99990708]
[1693542027524,5.50480007,26101.0,26100.0,0.99990708]
[1693542027708,5.50384007,26101.0,26100.0,0.99990708]
[1693542027915,5.50204007,26101.0,26100.0,0.99990708]
[1693542028122,5.50240007,26101.0,26100.0,0.99990708]
[1693542028322,5.50024007,26101.0,26100.0,0.99990708]
[1693542028574,5.50036007,26101.0,26100.0,0.99990708]
[1693542028778,5.36950007,26101.0,26100.0,0.99990708]
[1693542028987,5.36986007,26101.0,26100.0,0.99990708]
[1693542029144,5.37016007,26101.0,26100.0,0.99990708]
[1693542029327,5.36980007,26101.0,26100.0,0.99990708]
[1693542029523,5.37052007,26101.0,26100.0,0.99990708]
[1693542029758,5.36686007,26101.0,26100.0,0.99990708]
[1693542030110,5.13931622,26101.0,26100.0,0.99990708]
[1693542030424,5.12881622,26101.0,26100.0,0.99990708]
[1693542030627,5.12917622,26101.0,26100.0,0.99990708]
[1693542030848,5.13043622,26101.0,26100.0,0.99990708]
[1693542031032,5.13103622,26101.0,26100.0,0.99990708]
[1693542031230,5.13127622,26101.0,26100.0,0.99990708]
[1693542031442,5.13067622,26101.0,26100.0,0.99990708]
[1693542031637,5.13079622,26101.0,26100.0,0.99990708]
[1693542031899,5.13025622,26101.0,26100.0,0.99990708]
[1693542032107,5.13277622,26101.0,26100.0,0.99990708]
[1693542032320,5.13103622,26101.0,26100.0,0.99990708]
[1693542032534,4.94953622,26101.0,26100.0,0.99990708]
[1693542032734,4.95109622,26101.0,26100.0,0.99990708]
[1693542032943,4.95145622,26101.0,26100.0,0.99990708]
[1693542033147,4.54859622,26101.0,26100.0,0.99990708]
[1693542033351,4.31034235,26101.0,26100.0,0.99990708]
[1693542033556,4.31058235,26101.0,26100.0,0.99990708]
[1693542033761,4.31094235,26101.0,26100.0,0.99990708]
[1693542033963,4.31142235,26101.0,26100.0,0.99990708]
[1693542034171,4.31160235,26101.0,26100.0,0.99990708]
[1693542034374,4.31400235,26101.0,26100.0,0.99990708]
[1693542034589,4.31478235,26101.0,26100.0,0.99990708]
[1693542034787,4.59120007,26101.0,26100.0,0.99990708]
[1693542035003,4.59756007,26101.0,26100.0,0.99990708]
[1693542035208,4.60032007,26101.0,26100.0,0.99990708]
[1693542035421,4.60158007,26101.0,26100.0,0.99990708]
[1693542035636,4.60164007,26101.0,26100.0,0.99990708]
[1693542035847,4.60002007,26101.0,26100.0,0.99990708]
[1693542036029,4.60020007,26101.0,26100.0,0.99990708]
[1693542036433,4.60026007,26101.0,26100.0,0.99990708]
[1693542036632,4.59984007,26101.0,26100.0,0.99990708]
[1693542036812,4.59972007,26101.0,26100.0,0.99990708]
[1693542036994,4.60044007,26101.0,26100.0,0.99990708]
[1693542037194,4.60098007,26101.0,26100.0,0.99990708]
[1693542037395,4.60116007,26101.0,26100.0,0.99990708]
[1693542037619,4.60122007,26101.0,26100.0,0.99990708]
[1693542037795,4.60128007,26101.0,26100.0,0.99990708]
[1693542038032,4.60230007,26101.0,26100.0,0.99990708]
[1693542038241,4.60146007,26101.0,26100.0,0.99990708]
[1693542038443,4.60158007,26101.0,26100.0,0.99990708]
[1693542038617,4.60164007,26101.0,26100.0,0.99990708]
[1693542038818,4.60176007,26101.0,26100.0,0.99990708]
[1693542039018,4.59894007,26101.0,26100.0,0.99990708]
[1693542039267,4.59960007,26101.0,26100.0,0.99990708]
[1693542039430,4.59924007,26101.0,26100.0,0.99990708]
[1693542039628,4.59858007,26101.0,26100.0,0.99990708]
[1693542039839,5.35480049,26101.0,26100.0,0.99990708]
[1693542040048,5.08696277,26101.0,26100.0,0.99990708]
[1693542040266,5.08684277,26101.0,26100.0,0.99990708]
[1693542040601,5.09272277,26101.0,26100.0,0.99990708]
[1693542040743,5.09248277,26101.0,26100.0,0.99990708]
[1693542040954,5.09236277,26101.0,26100.0,0.99990708]
[1693542041329,5.09200277,26101.0,26100.0,0.99990708]
[1693542041506,5.08924277,26101.0,26100.0,0.99990708]
[1693542041734,5.08756277,26101.0,26100.0,0.99990708]
[1693542041910,5.08744277,26101.0,26100.0,0.99990708]
[1693542042113,5.08708277,26101.0,26100.0,0.99990708]
[1693542042644,5.08744277,26101.0,26100.0,0.99990708]
[1693542042827,5.07772277,26101.0,26100.0,0.99990708]
[1693542043044,5.07736277,26101.0,26100.0,0.99990708]
[1693542043260,5.07400277,26101.0,26100.0,0.99990708]
[1693542043483,5.07256277,26101.0,26100.0,0.99990708]
[1693542043689,5.07172277,26101.0,26100.0,0.99990708]
[1693542044097,5.06932277,26101.0,26100.0,0.99990708]
[1693542044562,5.06980277,26101.0,26100.0,0.99990708]
[1693542044989,5.06992277,26101.0,26100.0,0.99990708]
[1693542045407,5.07040277,26101.0,26100.0,0.99990708]
[1693542045636,5.07052277,26101.0,26100.0,0.99990708]
[1693542045848,5.07556277,26101.0,26100.0,0.99990708]
[1693542046023,5.07880277,26101.0,26100.0,0.99990708]
[1693542046639,5.07844277,26101.0,26100.0,0.99990708]
[1693542046810,5.08024277,26101.0,26100.0,0.99990708]
[1693542047052,5.09764277,26101.0,26100.0,0.99990708]
[1693542047236,5.09680277,26101.0,26100.0,0.99990708]
[1693542047443,5.09692277,26101.0,26100.0,0.99990708]
[1693542047850,5.09656277,26101.0,26100.0,0.99990708]
[1693542048058,5.09380277,26101.0,26100.0,0.99990708]
[1693542048267,5.07928277,26101.0,26100.0,0.99990708]
[1693542048469,5.08648277,26101.0,26100.0,0.99990708]
[1693542048673,5.08612277,26101.0,26100.0,0.99990708]
[1693542048919,5.08600277,26101.0,26100.0,0.99990708]
[1693542049124,5.08612277,26101.0,26100.0,0.99990708]
[1693542049326,5.08588277,26101.0,26100.0,0.99990708]
[1693542049518,5.08600277,26101.0,26100.0,0.99990708]
[1693542049703,5.08528277,26101.0,26100.0,0.99990708]
[1693542050584,5.08324277,26101.0,26100.0,0.99990708]
[1693542050805,5.09637277,26101.0,26100.0,0.99990708]
[1693542051014,4.95039277,26101.0,26100.0,0.99990708]
[1693542051213,4.94997277,26101.0,26100.0,0.99990708]
[1693542051421,4.94961277,26101.0,26100.0,0.99990708]
[1693542051701,4.94991277,26101.0,26100.0,0.99990708]
[1693542051842,4.95027277,26101.0,26100.0,0.99990708]
[1693542052059,4.94841277,26101.0,26100.0,0.99990708]
[1693542052252,4.94871277,26101.0,26100.0,0.99990708]
[1693542052453,4.94877277,26101.0,26100.0,0.99990708]
[1693542052621,4.94931277,26101.0,26100.0,0.99990708]
[1693542052824,4.94949277,26101.0,26100.0,0.99990708]
[1693542053071,4.94943277,26101.0,26100.0,0.99990708]
[1693542053271,4.94847277,26101.0,26100.0,0.99990708]
[1693542053606,4.94805277,26101.0,26100.0,0.99990708]
[1693542053759,4.94847277,26101.0,26100.0,0.99990708]
[1693542053942,5.12145277,26101.0,26100.0,0.99990708]
[1693542054143,5.12151277,26101.0,26100.0,0.99990708]
[1693542054346,5.12145277,26101.0,26100.0,0.99990708]
[1693542054664,5.12187277,26101.0,26100.0,0.99990708]
[1693542055076,5.12163277,26101.0,26100.0,0.99990708]
[1693542055401,5.12343277,26101.0,26100.0,0.99990708]
[1693542055799,5.12289277,26101.0,26100.0,0.99990708]
[1693542056002,5.12277277,26101.0,26100.0,0.99990708]
[1693542056297,5.43188706,26101.0,26100.0,0.99990708]
[1693542056503,5.42900706,26101.0,26100.0,0.99990708]
[1693542056707,5.58308706,26101.0,26100.0,0.99990708]
[1693542056998,5.58188706,26101.0,26100.0,0.99990708]
[1693542057208,5.57396706,26101.0,26100.0,0.99990708]
[1693542057339,5.12697277,26101.0,26100.0,0.99990708]
[1693542057540,5.12679277,26101.0,26100.0,0.99990708]
[1693542057809,5.12667277,26101.0,26100.0,0.99990708]
[1693542057956,5.12613277,26101.0,26100.0,0.99990708]
[1693542058136,5.12655277,26101.0,26100.0,0.99990708]
[1693542058341,5.12661277,26101.0,26100.0,0.99990708]
[1693542058728,5.25945277,26101.0,26100.0,0.99990708]
[1693542059105,5.43518706,26101.0,26100.0,0.99990708]
[1693542059306,5.43056706,26101.0,26100.0,0.99990708]
[1693542059510,5.43050706,26101.0,26100.0,0.99990708]
[1693542059745,5.43098706,26101.0,26100.0,0.99990708]
[1693542059930,5.43092706,26101.0,26100.0,0.99990708]
[1693542060175,5.43098706,26101.0,26100.0,0.99990708]
[1693542060377,5.43104706,26101.0,26100.0,0.99990708]
[1693542060584,5.43110706,26101.0,26100.0,0.99990708]
[1693542060785,5.43014706,26101.0,26100.0,0.99990708]
[1693542060990,5.43020706,26101.0,26100.0,0.99990708]
[1693542061196,4.79586342,26101.0,26100.0,0.99990708]
[1693542061402,4.20821342,26101.0,26100.0,0.99990708]
[1693542061607,4.08359342,26101.0,26100.0,0.99990708]
[1693542061809,4.08539342,26101.0,26100.0,0.99990708]
[1693542062016,4.15787513,26101.0,26100.0,0.99990708]
[1693542062217,4.16225513,26101.0,26100.0,0.99990708]
[1693542062418,4.16531513,26101.0,26100.0,0.99990708]
[1693542062550,4.16993513,26101.0,26100.0,0.99990708]
[1693542062754,4.17293513,26101.0,26100.0,0.99990708]
[1693542062935,4.17317513,26101.0,26100.0,0.99990708]
[1693542063137,4.17371513,26101.0,26100.0,0.99990708]
[1693542063382,4.17341513,26101.0,26100.0,0.99990708]
[1693542063615,4.17383513,26101.0,26100.0,0.99990708]
[1693542063764,4.29857513,26101.0,26100.0,0.99990708]
[1693542063991,4.29881513,26101.0,26100.0,0.99990708]
[1693542064336,4.30049513,26101.0,26100.0,0.99990708]
[1693542064538,4.02519277,26101.0,26100.0,0.99990708]
[1693542064738,4.02459277,26101.0,26100.0,0.99990708]
[1693542064941,4.02537277,26101.0,26100.0,0.99990708]
[1693542065123,4.02555277,26101.0,26100.0,0.99990708]
[1693542065265,4.02567277,26101.0,26100.0,0.99990708]
[1693542065463,4.02669277,26101.0,26100.0,0.99990708]
[1693542065667,4.02735277,26101.0,26100.0,0.99990708]
[1693542065867,4.24837649,26101.0,26100.0,0.99990708]
[1693542066132,4.24849649,26101.0,26100.0,0.99990708]
[1693542066355,4.24885649,26101.0,26100.0,0.99990708]
[1693542066554,4.24747649,26101.0,26100.0,0.99990708]
[1693542066869,4.24753649,26101.0,26100.0,0.99990708]
[1693542067116,4.24729649,26101.0,26100.0,0.99990708]
[1693542067358,4.24801649,26101.0,26100.0,0.99990708]
[1693542067530,4.24819649,26101.0,26100.0,0.99990708]
[1693542067755,4.24831649,26101.0,26100.0,0.99990708]
[1693542067937,4.24837649,26101.0,26100.0,0.99990708]
[1693542068310,4.24843649,26101.0,26100.0,0.99990708]
[1693542068591,4.02681277,26101.0,26100.0,0.99990708]
[1693542068843,4.04877277,26101.0,26100.0,0.99990708]
[1693542069003,4.60031277,26101.0,26100.0,0.99990708]
[1693542069204,4.64927277,26101.0,26100.0,0.99990708]
[1693542069402,4.31339848,26101.0,26100.0,0.99990708]
[1693542069700,4.30823848,26101.0,26100.0,0.99990708]
[1693542069882,4.61672444,26101.0,26100.0,0.99990708]
[1693542070088,4.61624444,26101.0,26100.0,0.99990708]
[1693542070266,4.30271848,26101.0,26100.0,0.99990708]
[1693542070463,4.61228397,26101.0,26100.0,0.99990708]
[1693542070685,4.59228397,26101.0,26100.0,0.99990708]
[1693542070892,4.28091848,26101.0,26100.0,0.99990708]
[1693542071107,4.28067848,26101.0,26100.0,0.99990708]
[1693542071303,4.28019848,26101.0,26100.0,0.99990708]
[1693542071611,4.28031848,26101.0,26100.0,0.99990708]
[1693542071767,4.26843848,26101.0,26100.0,0.99990708]
[1693542071967,4.26495848,26101.0,26100.0,0.99990708]
[1693542072179,4.13031848,26101.0,26100.0,0.99990708]
[1693542072360,4.13055848,26101.0,26100.0,0.99990708]
[1693542072803,4.13037848,26101.0,26100.0,0.99990708]
[1693542072985,4.13019848,26101.0,26100.0,0.99990708]
[1693542073193,4.13025848,26101.0,26100.0,0.99990708]
[1693542073392,4.12935848,26101.0,26100.0,0.99990708]
[1693542073600,3.84446804,26101.0,26100.0,0.99990708]
[1693542073930,3.82550804,26101.0,26100.0,0.99990708]
[1693542074070,4.23850804,26101.0,26100.0,0.99990708]
[1693542074267,4.04505677,26101.0,26100.0,0.99990708]
[1693542074471,4.04337677,26101.0,26100.0,0.99990708]
[1693542074713,4.43017094,26101.0,26100.0,0.99990708]
[1693542074912,4.42813094,26101.0,26100.0,0.99990708]
[1693542075112,4.42969094,26101.0,26100.0,0.99990708]
[1693542075312,4.42975094,26101.0,26100.0,0.99990708]
[1693542075493,4.74027336,26101.0,26100.0,0.99990708]
[1693542075692,4.73931336,26101.0,26100.0,0.99990708]
[1693542075895,4.42753094,26101.0,26100.0,0.99990708]
[1693542076100,4.74045355,26101.0,26100.0,0.99990708]
[1693542076304,4.43293094,26101.0,26100.0,0.99990708]
[1693542076500,4.61035094,26101.0,26100.0,0.99990708]
[1693542076725,4.61239094,26101.0,26100.0,0.99990708]
[1693542076977,4.59043094,26101.0,26100.0,0.99990708]
[1693542077161,4.58815094,26101.0,26100.0,0.99990708]
[1693542077365,4.58779094,26101.0,26100.0,0.99990708]
[1693542077597,4.44379094,26101.0,26100.0,0.99990708]
[1693542077718,4.44547094,26101.0,26100.0,0.99990708]
[1693542077942,4.44511094,26101.0,26100.0,0.99990708]
[1693542078138,4.44583094,26101.0,26100.0,0.99990708]
[1693542078365,4.44559094,26101.0,26100.0,0.99990708]
[1693542078566,4.44553094,26101.0,26100.0,0.99990708]
[1693542078841,4.57591094,26101.0,26100.0,0.99990708]
[1693542079065,4.57567094,26101.0,26100.0,0.99990708]
[1693542079299,4.57495094,26101.0,26100.0,0.99990708]
[1693542079479,4.44559094,26101.0,26100.0,0.99990708]
[1693542079816,4.44511094,26101.0,26100.0,0.99990708]
[1693542080017,4.44007094,26101.0,26100.0,0.99990708]
[1693542080220,4.43707094,26101.0,26100.0,0.99990708]
[1693542080399,4.43743094,26101.0,26100.0,0.99990708]
[1693542080633,4.07362804,26101.0,26100.0,0.99990708]
[1693542080817,4.06942804,26101.0,26100.0,0.99990708]
[1693542080992,4.44197893,26101.0,26100.0,0.99990708]
[1693542081345,4.44239893,26101.0,26100.0,0.99990708]
[1693542081538,4.44233893,26101.0,26100.0,0.99990708]
[1693542081941,4.44197893,26101.0,26100.0,0.99990708]
[1693542082083,4.44233893,26101.0,26100.0,0.99990708]
[1693542082304,4.43705893,26101.0,26100.0,0.99990708]
[1693542082510,4.43789893,26101.0,26100.0,0.99990708]
[1693542082714,4.43861893,26101.0,26100.0,0.99990708]
[1693542082917,4.43675893,26101.0,26100.0,0.99990708]
[1693542083136,4.43657893,26101.0,26100.0,0.99990708]
[1693542083319,4.43777893,26101.0,26100.0,0.99990708]
[1693542083540,4.43759893,26101.0,26100.0,0.99990708]
[1693542083736,4.43735893,26101.0,26100.0,0.99990708]
[1693542084080,4.43693893,26101.0,26100.0,0.99990708]
[1693542084283,4.43507893,26101.0,26100.0,0.99990708]
[1693542084460,4.43477893,26101.0,26100.0,0.99990708]
[1693542084663,4.43537893,26101.0,26100.0,0.99990708]
[1693542084819,4.43435893,26101.0,26100.0,0.99990708]
[1693542085040,4.43429893,26101.0,26100.0,0.99990708]
[1693542085235,4.43261893,26101.0,26100.0,0.99990708]
[1693542085457,4.43405893,26101.0,26100.0,0.99990708]
[1693542085699,4.7093469,26101.0,26100.0,0.99990708]
[1693542085908,4.7094069,26101.0,26100.0,0.99990708]
[1693542086106,4.7098869,26101.0,26100.0,0.99990708]
[1693542086310,4.7047269,26101.0,26100.0,0.99990708]
[1693542086511,3.90217273,26101.0,26100.0,0.99990708]
[1693542086684,3.90469273,26101.0,26100.0,0.99990708]
[1693542086880,3.90649273,26101.0,26100.0,0.99990708]
[1693542087081,4.22604476,26101.0,26100.0,0.99990708]
[1693542087304,4.79937893,26101.0,26100.0,0.99990708]
[1693542087485,4.78533893,26101.0,26100.0,0.99990708]
[1693542087686,4.78413893,26101.0,26100.0,0.99990708]
[1693542087891,4.78197893,26101.0,26100.0,0.99990708]
[1693542088085,4.78293893,26101.0,26100.0,0.99990708]
[1693542088323,4.78401893,26101.0,26100.0,0.99990708]
[1693542088558,4.78257893,26101.0,26100.0,0.99990708]
[1693542088748,4.78329893,26101.0,26100.0,0.99990708]
[1693542088971,4.78353893,26101.0,26100.0,0.99990708]
[1693542089179,4.20776893,26101.0,26100.0,0.99990708]
[1693542089383,4.20992893,26101.0,26100.0,0.99990708]
[1693542089614,4.21100893,26101.0,26100.0,0.99990708]
[1693542089812,4.20728893,26101.0,26100.0,0.99990708]
[1693542090012,4.21544316,26101.0,26100.0,0.99990708]
[1693542090213,4.21604316,26101.0,26100.0,0.99990708]
[1693542090438,4.79025316,26101.0,26100.0,0.99990708]
[1693542090655,4.79013316,26101.0,26100.0,0.99990708]
[1693542090857,4.78941316,26101.0,26100.0,0.99990708]
[1693542091043,4.78929316,26101.0,26100.0,0.99990708]
[1693542091236,4.78917316,26101.0,26100.0,0.99990708]
[1693542091434,4.78653316,26101.0,26100.0,0.99990708]
[1693542091670,4.78665316,26101.0,26100.0,0.99990708]
[1693542091847,4.78605316,26101.0,26100.0,0.99990708]
[1693542091995,4.78749316,26101.0,26100.0,0.99990708]
[1693542092202,4.78581316,26101.0,26100.0,0.99990708]
[1693542092570,2.93154316,26101.0,26100.0,0.99990708]
[1693542092778,4.65543316,26101.0,26100.0,0.99990708]
[1693542093079,4.65555316,26101.0,26100.0,0.99990708]
[1693542093256,4.65537316,26101.0,26100.0,0.99990708]
[1693542093461,4.65591316,26101.0,26100.0,0.99990708]
[1693542093667,4.78797316,26101.0,26100.0,0.99990708]
[1693542093984,4.65435316,26101.0,26100.0,0.99990708]
[1693542094312,4.65399316,26101.0,26100.0,0.99990708]
[1693542094513,4.81017316,26101.0,26100.0,0.99990708]
[1693542094693,4.80549316,26101.0,26100.0,0.99990708]
[1693542094882,4.79925316,26101.0,26100.0,0.99990708]
[1693542095053,4.79853316,26101.0,26100.0,0.99990708]
[1693542095237,4.79829316,26101.0,26100.0,0.99990708]
[1693542095434,4.79781316,26101.0,26100.0,0.99990708]
[1693542095639,4.80237316,26101.0,26100.0,0.99990708]
[1693542095839,4.79793316,26101.0,26100.0,0.99990708]
[1693542096057,4.79493316,26101.0,26100.0,0.99990708]
[1693542096492,4.79361316,26101.0,26100.0,0.99990708]
[1693542096648,4.79409316,26101.0,26100.0,0.99990708]
[1693542096851,4.79277316,26101.0,26100.0,0.99990708]
[1693542097052,4.79241316,26101.0,26100.0,0.99990708]
[1693542097249,4.79205316,26101.0,26100.0,0.99990708]
[1693542097480,4.78593316,26101.0,26100.0,0.99990708]
[1693542097680,4.65321316,26101.0,26100.0,0.99990708]
[1693542097877,4.65393316,26101.0,26100.0,0.99990708]
[1693542098079,4.65381316,26101.0,26100.0,0.99990708]
[1693542098298,4.65369316,26101.0,26100.0,0.99990708]
[1693542098499,4.65357316,26101.0,26100.0,0.99990708]
[1693542098699,4.65351316,26101.0,26100.0,0.99990708]
[1693542098876,4.65297316,26101.0,26100.0,0.99990708]
[1693542099079,4.79997316,26101.0,26100.0,0.99990708]
[1693542099306,4.80621316,26101.0,26100.0,0.99990708]
[1693542099521,4.79637316,26101.0,26100.0,0.99990708]
[1693542099719,4.78893316,26101.0,26100.0,0.99990708]
[1693542099971,4.65285316,26101.0,26100.0,0.99990708]
[1693542100167,4.64943316,26101.0,26100.0,0.99990708]
[1693542100350,4.64481316,26101.0,26100.0,0.99990708]
[1693542100523,4.64631316,26101.0,26100.0,0.99990708]
[1693542100746,4.64751316,26101.0,26100.0,0.99990708]
[1693542100947,4.64619316,26101.0,26100.0,0.99990708]
[1693542101126,4.64637316,26101.0,26100.0,0.99990708]
[1693542101361,4.83837316,26101.0,26100.0,0.99990708]
[1693542101575,4.80105893,26101.0,26100.0,0.99990708]
[1693542101916,4.79973893,26101.0,26100.0,0.99990708]
[1693542102119,4.80249893,26101.0,26100.0,0.99990708]
[1693542102409,4.80105893,26101.0,26100.0,0.99990708]
[1693542102720,4.79937893,26101.0,26100.0,0.99990708]
[1693542102915,4.79625893,26101.0,26100.0,0.99990708]
[1693542103122,4.79289893,26101.0,26100.0,0.99990708]
[1693542103324,4.79325893,26101.0,26100.0,0.99990708]
[1693542103547,4.79301893,26101.0,26100.0,0.99990708]
[1693542103751,4.79241893,26101.0,26100.0,0.99990708]
[1693542103876,4.79205893,26101.0,26100.0,0.99990708]
[1693542104084,4.79157893,26101.0,26100.0,0.99990708]
[1693542104286,4.79121893,26101.0,26100.0,0.99990708]
[1693542104489,4.79073893,26101.0,26100.0,0.99990708]
[1693542104714,4.78881893,26101.0,26100.0,0.99990708]
[1693542105069,4.63461893,26101.0,26100.0,0.99990708]
[1693542105281,4.63215893,26101.0,26100.0,0.99990708]
[1693542105424,4.62615893,26101.0,26100.0,0.99990708]
[1693542105635,4.62627893,26101.0,26100.0,0.99990708]
[1693542105836,4.62483893,26101.0,26100.0,0.99990708]
[1693542106403,4.89230268,26101.0,26100.0,0.99990708]
[1693542106576,4.62405893,26101.0,26100.0,0.99990708]
[1693542106779,4.62489893,26101.0,26100.0,0.99990708]
[1693542106980,4.62417893,26101.0,26100.0,0.99990708]
[1693542107185,4.62423893,26101.0,26100.0,0.99990708]
[1693542107334,4.62399893,26101.0,26100.0,0.99990708]
[1693542107545,4.62579893,26101.0,26100.0,0.99990708]
[1693542107759,4.79145893,26101.0,26100.0,0.99990708]
[1693542107982,4.78509893,26101.0,26100.0,0.99990708]
[1693542108185,4.77945893,26101.0,26100.0,0.99990708]
[1693542108368,4.77801893,26101.0,26100.0,0.99990708]
[1693542108570,4.77513893,26101.0,26100.0,0.99990708]
[1693542108768,4.77441893,26101.0,26100.0,0.99990708]
[1693542109103,4.63497893,26101.0,26100.0,0.99990708]
[1693542109304,4.63683893,26101.0,26100.0,0.99990708]
[1693542109503,4.63473893,26101.0,26100.0,0.99990708]
[1693542109705,4.831081,26101.0,26100.0,0.99990708]
[1693542109880,4.22910476,26101.0,26100.0,0.99990708]
[1693542110096,4.49857661,26101.0,26100.0,0.99990708]
[1693542110297,4.49635661,26101.0,26100.0,0.99990708]
[1693542110502,4.22670476,26101.0,26100.0,0.99990708]
[1693542110686,4.61301893,26101.0,26100.0,0.99990708]
[1693542110887,4.61193893,26101.0,26100.0,0.99990708]
[1693542111151,4.61199893,26101.0,26100.0,0.99990708]
[1693542111282,4.61211893,26101.0,26100.0,0.99990708]
[1693542111482,4.81137738,26101.0,26100.0,0.99990708]
[1693542111744,4.80723738,26101.0,26100.0,0.99990708]
[1693542111901,4.80765738,26101.0,26100.0,0.99990708]
[1693542112100,4.80627738,26101.0,26100.0,0.99990708]
[1693542112302,4.80633738,26101.0,26100.0,0.99990708]